bitfinex/quotes_ETHUSD_20240612
["timestamp","ask_amount","ask_price","bid_price","bid_amount"]
[1718226028117,2.2593,3557.4,3556.8,0.05622235]
[1718226031338,2.3693,3558.1,3556.9,0.855]
[1718226031512,2.3693,3558.1,3557.2,0.855]
[1718226031713,2.3693,3558.1,3557.3,0.05620894]
[1718226034000,2.3489,3559.0,3557.6,0.855]
[1718226034206,0.855,3558.8,3557.8,0.855]
[1718226034510,2.3489,3558.9,3558.0,0.855]
[1718226034723,2.3489,3558.9,3558.1,0.05620165]
[1718226035041,3.2039,3558.9,3558.1,0.05620165]
[1718226035335,2.3489,3558.9,3558.2,2.379]
[1718226035515,2.2501,3559.4,3558.6,0.855]
[1718226035710,2.2501,3559.4,3558.7,0.05619408]
[1718226036132,3.1051,3559.4,3558.7,0.05619408]
[1718226036633,3.1051,3559.4,3558.5,0.05619394]
[1718226037649,0.855,3559.2,3558.4,0.855]
[1718226039217,0.855,3559.2,3558.5,0.05619411]
[1718226046319,0.855,3559.2,3558.3,1.09852017]
[1718226046654,0.855,3559.2,3558.4,0.0561943]
[1718226047219,2.3966,3558.9,3558.3,0.24352017]
[1718226047413,2.3966,3558.9,3557.9,2.10713613]
[1718226047414,2.3966,3558.9,3558.0,0.855]
[1718226050138,2.3966,3558.9,3557.9,1.524]
[1718226050451,2.3966,3558.9,3558.0,2.37572381]
[1718226050654,2.3966,3558.9,3558.0,0.91120284]
[1718226050959,2.3966,3558.9,3558.1,0.3018339]
[1718226053016,2.3966,3558.9,3558.2,0.05619951]
[1718226053229,2.3966,3558.9,3558.1,0.3018339]
[1718226054428,2.4852,3559.3,3558.3,1.524]
[1718226054751,0.855,3558.9,3558.4,0.38403648]
[1718226054952,0.855,3558.9,3558.1,0.3018339]
[1718226055161,0.855,3558.9,3558.2,1.46453157]
[1718226055313,0.855,3558.9,3558.1,0.3018339]
[1718226055516,0.855,3558.9,3558.2,1.46452372]
[1718226055517,3.1085,3558.9,3558.2,1.46452372]
[1718226055712,3.1085,3558.9,3558.3,0.47284938]
[1718226056563,3.1085,3558.9,3558.0,2.96213613]
[1718226056857,3.1085,3558.9,3558.1,1.46453274]
[1718226057040,3.1085,3558.9,3558.2,1.46453274]
[1718226057535,3.1085,3558.9,3558.0,2.96213613]
[1718226057862,3.1085,3558.9,3558.1,1.46454169]
[1718226058168,3.1085,3558.9,3558.2,1.90720947]
[1718226058370,3.1085,3558.9,3558.2,0.44266778]
[1718226058968,3.1085,3558.9,3558.0,1.43813613]
[1718226059143,3.1085,3558.9,3558.1,1.46455371]
[1718226059462,3.1085,3558.9,3558.0,1.43813613]
[1718226059626,3.1085,3558.9,3558.1,1.46455237]
[1718226060121,3.1085,3558.9,3558.0,1.43813613]
[1718226060324,3.1085,3558.9,3558.1,1.99583639]
[1718226060523,3.1085,3558.9,3558.1,0.53128403]
[1718226062033,3.1085,3558.9,3558.0,0.58313613]
[1718226062034,2.2781,3558.8,3558.0,0.58313613]
[1718226062241,2.2781,3558.8,3558.1,1.46455285]
[1718226062441,2.2781,3558.8,3557.9,1.43813613]
[1718226062758,2.2781,3558.8,3558.0,1.46456014]
[1718226063091,2.2781,3558.8,3558.1,1.46456014]
[1718226063240,0.855,3558.7,3557.9,0.58313613]
[1718226063443,1.43344514,3559.3,3557.8,0.58313613]
[1718226063444,0.855,3558.3,3557.8,0.58313613]
[1718226063633,0.855,3558.3,3557.7,0.58313613]
[1718226063986,0.855,3558.3,3557.5,1.43813613]
[1718226064281,0.855,3558.3,3557.6,1.46475453]
[1718226064440,0.855,3558.3,3557.5,1.43813613]
[1718226064441,0.855,3558.3,3557.7,1.8100436]
[1718226064643,0.855,3558.3,3557.7,0.34528907]
[1718226066466,0.855,3558.3,3557.5,0.58313613]
[1718226066798,1.43344514,3559.2,3557.4,0.58313613]
[1718226066799,2.362,3557.8,3557.4,0.58313613]
[1718226066939,2.362,3557.8,3557.0,7.49432855]
[1718226067277,2.362,3557.8,3557.1,1.46505839]
[1718226067438,2.362,3557.8,3557.2,1.8140523]
[1718226067633,2.362,3557.8,3557.2,0.34899391]
[1718226069494,2.362,3557.8,3557.2,0.93213004]
[1718226069644,2.362,3557.8,3557.3,1.46497864]
[1718226069845,2.362,3557.8,3557.2,0.93213004]
[1718226070044,2.362,3557.8,3557.3,1.92646473]
[1718226070380,2.362,3557.8,3557.3,0.46151287]
[1718226070885,2.362,3557.8,3557.4,1.46494878]
[1718226071045,2.362,3557.8,3557.3,0.46151287]
[1718226071378,2.362,3557.8,3557.4,1.46494445]
[1718226071571,2.362,3557.8,3557.3,0.46151287]
[1718226071884,2.362,3557.8,3557.4,1.46495139]
[1718226072072,2.362,3557.8,3557.3,0.46151287]
[1718226072073,2.362,3557.8,3557.3,1.044649]
[1718226072273,2.362,3557.8,3557.4,1.46495288]
[1718226072448,0.855,3557.5,3557.4,1.46495288]
[1718226072649,0.855,3557.5,3557.1,0.58313613]
[1718226072858,0.855,3557.5,3556.9,0.58313613]
[1718226073063,2.362,3557.8,3557.0,1.83063217]
[1718226073258,0.855,3557.6,3557.0,0.36547098]
[1718226073474,0.855,3557.7,3557.1,1.46510178]
[1718226073658,0.855,3557.7,3557.0,0.36547098]
[1718226073874,0.855,3557.7,3557.0,0.94860711]
[1718226074062,0.855,3557.7,3557.1,1.81829961]
[1718226074383,0.855,3557.7,3557.1,0.35319392]
[1718226074683,2.362,3557.8,3557.1,0.35319392]
[1718226074860,0.855,3557.7,3557.2,1.46506242]
[1718226075062,2.362,3557.8,3557.0,0.58313613]
[1718226075259,0.855,3557.5,3557.0,0.58313613]
[1718226075462,2.4635,3557.4,3557.1,0.31664307]
[1718226075778,2.4635,3557.4,3556.9,0.58313613]
[1718226075989,5.959,3558.8,3556.9,0.58313613]
[1718226075990,2.4575,3558.7,3556.9,0.58313613]
[1718226076159,2.4575,3558.5,3557.0,1.49435679]
[1718226076484,2.4575,3558.0,3557.3,0.58313613]
[1718226076689,2.4575,3558.0,3557.5,0.855]
[1718226076879,2.4575,3558.0,3557.6,1.52135008]
[1718226077266,2.4575,3558.0,3557.7,1.4651389]
[1718226077464,0.855,3558.5,3557.8,1.4651389]
[1718226077692,2.3511,3558.4,3557.7,0.58313613]
[1718226077851,0.855,3558.3,3557.7,0.63934566]
[1718226078056,0.855,3558.3,3557.8,1.46475556]
[1718226078553,0.855,3558.1,3557.6,0.58313613]
[1718226079293,0.855,3557.9,3557.5,2.04799334]
[1718226079482,0.855,3557.9,3557.4,0.58313613]
[1718226079658,0.855,3557.9,3557.5,1.46495783]
[1718226079862,0.855,3557.9,3557.2,0.58313613]
[1718226080391,0.855,3557.9,3557.2,2.04815807]
[1718226081267,0.855,3557.9,3557.2,0.58313613]
[1718226081479,0.855,3557.9,3557.2,2.04815807]
[1718226081685,0.855,3557.9,3557.3,1.46502194]
[1718226081994,0.855,3557.9,3557.1,0.58313613]
[1718226082159,0.855,3557.9,3557.1,2.0481844]
[1718226082359,0.855,3557.9,3557.2,0.58313613]
[1718226082584,0.855,3557.9,3557.2,2.0481844]
[1718226082800,0.855,3557.9,3557.2,0.58313613]
[1718226082996,0.855,3557.9,3557.3,0.05621944]
[1718226083293,2.4177,3558.0,3557.3,0.05621944]
[1718226083591,2.4177,3558.0,3557.3,2.10440384]
[1718226087299,2.4177,3558.0,3557.3,0.63935557]
[1718226087622,2.4177,3558.0,3557.3,0.05621944]
[1718226092102,2.4177,3558.0,3557.3,1.58021944]
[1718226092301,2.4177,3558.0,3557.4,0.24352194]
[1718226092619,2.4177,3558.0,3557.4,0.29973679]
[1718226093576,2.3771,3559.1,3557.5,0.855]
[1718226093777,2.3771,3558.4,3557.6,0.05620871]
[1718226093996,2.3771,3558.4,3557.7,0.26787306]
[1718226094197,2.3771,3558.4,3557.8,0.05620871]
[1718226095736,2.3771,3558.4,3557.9,0.855]
[1718226096030,2.2753,3558.7,3558.0,0.05620463]
[1718226097666,2.4379,3559.3,3558.1,1.405]
[1718226097937,2.4379,3559.3,3558.2,0.52341674]
[1718226097938,0.855,3559.1,3558.2,0.52341674]
[1718226098302,2.4379,3559.0,3558.2,0.52341674]
[1718226098509,2.4379,3559.0,3558.3,0.05619629]
[1718226099928,2.342,3560.0,3558.5,0.855]
[1718226100129,2.342,3559.4,3558.6,0.29971103]
[1718226101142,2.342,3559.4,3558.9,0.58526003]
[1718226101299,2.342,3559.4,3559.0,1.46425922]
[1718226101512,2.342,3559.4,3558.8,0.58526003]
[1718226101741,2.342,3559.4,3558.9,1.52045029]
[1718226101908,2.342,3559.4,3558.9,0.05619081]
[1718226102113,2.342,3559.4,3559.0,1.46427389]
[1718226102417,2.342,3559.4,3558.8,0.58526003]
[1718226102608,2.342,3559.4,3558.9,1.5204595]
[1718226102809,2.342,3559.4,3558.9,0.05619081]
[1718226105727,2.342,3559.4,3558.9,0.23247686]
[1718226106846,7.46,3560.4,3559.1,0.855]
[1718226106847,2.4623,3560.2,3559.1,0.855]
[1718226107168,0.855,3560.0,3559.2,1.52032244]
[1718226107364,0.855,3560.0,3559.3,1.52028508]
[1718226107520,2.4623,3560.2,3559.2,1.33435422]
[1718226107857,0.855,3560.0,3559.3,1.52027607]
[1718226108057,0.855,3560.0,3559.4,1.46409105]
[1718226108236,0.855,3560.0,3559.2,0.74909419]
[1718226108437,0.855,3560.0,3559.3,1.5202525]
[1718226108678,0.855,3560.0,3559.3,0.05618497]
[1718226109960,0.855,3559.8,3559.3,0.05618497]
[1718226110332,2.4623,3560.2,3559.3,0.05618497]
[1718226110529,0.855,3560.0,3559.3,0.05618497]
[1718226110832,0.855,3560.0,3559.4,0.22455392]
[1718226111458,0.855,3560.0,3559.3,0.05618497]
[1718226113857,0.855,3559.8,3559.3,0.05618497]
[1718226114069,0.855,3559.8,3559.1,0.05618389]
[1718226118543,0.855,3559.8,3558.9,2.55528605]
[1718226118744,2.3287,3559.7,3559.0,1.46410168]
[1718226118939,2.3287,3559.7,3559.1,0.46046478]
[1718226119555,0.02491333,3559.6,3559.1,0.46046478]
[1718226120845,2.3287,3559.7,3559.1,0.46046478]
[1718226124944,0.855,3559.8,3559.2,0.05618435]
[1718226125246,2.3173,3559.9,3559.2,0.05618435]
[1718226125446,2.3173,3559.9,3559.3,0.19569092]
[1718226125959,0.855,3559.8,3559.4,1.524]
[1718226126161,2.4883,3560.3,3559.4,1.524]
[1718226126886,2.4883,3560.3,3559.5,0.05618413]
[1718226127102,3.3433,3560.3,3559.5,0.05618413]
[1718226127282,3.3433,3560.3,3559.6,0.32161351]
[1718226127605,3.3433,3560.3,3559.6,0.37779255]
[1718226127762,3.3433,3560.3,3559.6,0.96305258]
[1718226127961,3.3433,3560.3,3559.7,1.46385435]
[1718226128164,3.3433,3560.3,3559.6,0.32161351]
[1718226128459,3.3433,3560.3,3559.7,0.32858735]
[1718226128658,3.3433,3560.3,3559.8,1.46385014]
[1718226128888,3.37396588,3560.3,3559.7,0.91384738]
[1718226129045,3.37396588,3560.3,3559.8,1.46381518]
[1718226129248,3.37396588,3560.3,3559.7,0.32858735]
[1718226129474,3.37396588,3560.3,3559.8,1.870359]
[1718226129675,3.37396588,3560.3,3559.8,0.40651507]
[1718226129980,0.88566588,3560.3,3559.8,0.40651507]
[1718226130144,0.88566588,3560.3,3559.7,0.91384738]
[1718226130349,0.88566588,3560.3,3559.8,1.46381777]
[1718226130545,0.88566588,3560.3,3559.7,0.32858735]
[1718226130761,0.88566588,3560.3,3559.8,1.46383862]
[1718226130961,0.88566588,3560.3,3559.7,0.32858735]
[1718226131168,0.88566588,3560.3,3559.8,1.83819375]
[1718226131378,0.03066588,3560.3,3559.8,0.37435398]
[1718226131610,0.88566588,3560.3,3559.8,0.05617608]
[1718226132247,0.88566588,3560.3,3559.7,0.91384738]
[1718226132575,0.88566588,3560.3,3559.7,0.32858735]
[1718226132576,0.855,3560.3,3559.7,0.32858735]
[1718226134296,0.855,3560.1,3559.6,0.58526003]
[1718226134606,0.855,3560.2,3559.4,0.58526003]
[1718226134777,0.855,3560.2,3559.5,1.46395643]
[1718226134974,0.855,3560.2,3559.6,1.46390455]
[1718226135283,2.2682,3560.5,3559.7,0.2537945]
[1718226135495,0.855,3560.4,3559.8,0.05617609]
[1718226136407,2.2682,3560.5,3559.8,0.05617609]
[1718226136709,0.855,3560.4,3559.8,0.05617609]
[1718226137170,0.855,3560.4,3559.8,1.58017609]
[1718226137369,0.855,3560.4,3559.9,0.23703526]
[1718226137611,2.4434,3561.2,3560.1,0.855]
[1718226137783,2.4434,3561.2,3560.2,0.90299126]
[1718226137784,3.2984,3561.2,3560.2,0.90299126]
[1718226137986,0.855,3561.0,3560.4,0.58526003]
[1718226138305,0.855,3561.0,3560.5,1.75620776]
[1718226138469,0.855,3561.1,3560.5,0.29266889]
[1718226138874,0.855,3561.1,3560.6,1.46353489]
[1718226139120,0.855,3561.1,3560.5,0.29266889]
[1718226139309,0.855,3561.1,3560.6,1.46354471]
[1718226139510,0.855,3561.1,3560.7,0.23976405]
[1718226139716,0.855,3561.1,3560.5,0.87792892]
[1718226139930,2.4434,3561.2,3560.6,1.46353326]
[1718226140137,2.4434,3561.2,3560.7,1.46353326]
[1718226140416,3.0,3562.1,3560.5,2.40192892]
[1718226140417,2.4258,3562.1,3561.0,0.855]
[1718226140711,0.855,3561.9,3561.0,0.44602133]
[1718226141017,0.605,3561.9,3561.1,2.04869596]
[1718226141828,3.3057,3561.3,3560.8,0.58526003]
[1718226141980,3.3057,3561.3,3560.6,0.58526003]
[1718226141981,0.855,3560.9,3560.6,0.58526003]
[1718226142186,2.4507,3561.3,3560.5,0.58526003]
[1718226142424,2.4507,3561.3,3560.6,1.46355197]
[1718226142637,2.4507,3561.3,3560.6,0.5305702]
[1718226142971,0.855,3561.4,3560.7,1.46348577]
[1718226143105,0.855,3561.4,3560.6,0.5305702]
[1718226143279,0.855,3561.4,3560.7,1.46348693]
[1718226143481,0.855,3561.0,3560.5,0.58526003]
[1718226143719,1.33380451,3561.0,3560.6,1.46348975]
[1718226143891,0.855,3561.0,3560.3,0.58526003]
[1718226144092,0.855,3561.0,3560.4,1.46364553]
[1718226144303,0.855,3561.0,3560.5,1.46363867]
[1718226144526,0.855,3561.0,3560.3,0.58526003]
[1718226144897,0.855,3561.0,3560.4,1.46363027]
[1718226145097,0.855,3561.0,3560.5,1.46363027]
[1718226145415,0.855,3561.0,3560.5,0.29267803]
[1718226145638,0.855,3560.8,3560.4,0.58526003]
[1718226145778,0.855,3560.8,3560.3,0.58526003]
[1718226145779,2.457,3560.7,3560.3,0.58526003]
[1718226145981,2.457,3560.7,3560.4,1.46369766]
[1718226146378,2.457,3560.7,3560.2,0.58526003]
[1718226146620,2.457,3560.7,3560.3,1.46373783]
[1718226146822,0.855,3560.8,3560.2,0.58526003]
[1718226146984,0.855,3560.6,3560.3,1.46376112]
[1718226147322,0.855,3560.6,3560.0,0.58526003]
[1718226147520,0.855,3560.6,3559.9,0.58526003]
[1718226147723,0.855,3560.6,3560.0,1.4638363]
[1718226148024,2.3655,3560.9,3559.9,0.58526003]
[1718226148188,0.855,3560.7,3560.0,1.84804485]
[1718226148388,0.855,3560.7,3560.1,1.46382984]
[1718226148703,0.855,3560.7,3560.0,0.96947504]
[1718226148907,0.855,3560.7,3560.1,1.46379634]
[1718226149098,0.855,3560.7,3560.0,0.58526003]
[1718226149298,0.855,3560.7,3560.1,1.46381449]
[1718226149592,0.855,3560.7,3560.0,0.58526003]
[1718226149919,0.855,3560.7,3560.1,2.04905771]
[1718226150218,0.855,3560.7,3560.2,1.46379768]
[1718226150426,2.3655,3560.9,3560.3,1.46379768]
[1718226150644,7.46,3561.7,3560.3,1.46379768]
[1718226150645,0.855,3561.0,3560.4,1.46379768]
[1718226150848,0.855,3561.0,3560.3,1.524]
[1718226151147,0.855,3561.0,3560.4,1.46364633]
[1718226151315,0.855,3561.0,3560.5,1.46364633]
[1718226151748,0.855,3561.5,3560.5,2.61132597]
[1718226151921,0.855,3561.5,3560.6,1.46364633]
[1718226152245,0.855,3561.5,3560.8,0.58526003]
[1718226152457,0.855,3561.5,3560.9,1.46364633]
[1718226152742,0.855,3561.5,3560.7,0.58526003]
[1718226152955,0.855,3561.3,3560.8,1.46351069]
[1718226153155,0.855,3561.3,3560.7,0.58526003]
[1718226153354,0.855,3561.3,3560.7,0.96339501]
[1718226153650,0.855,3561.3,3560.8,1.46346446]
[1718226153861,0.855,3561.3,3560.7,0.96339501]
[1718226154021,0.855,3561.3,3560.8,1.46350336]
[1718226154222,0.855,3561.3,3560.9,1.46350336]
[1718226154754,0.855,3561.3,3560.7,0.96339501]
[1718226154940,2.3498,3561.0,3560.8,1.46351521]
[1718226155141,2.3498,3561.0,3560.7,0.58526003]
[1718226155323,2.3498,3561.0,3560.8,1.46354647]
[1718226155517,2.3498,3561.0,3560.6,0.58526003]
[1718226155714,2.3498,3561.0,3560.7,1.46354627]
[1718226155959,2.3498,3561.0,3560.8,1.46354627]
[1718226156122,2.3498,3561.0,3560.6,0.58526003]
[1718226156326,0.855,3561.3,3560.7,1.60986372]
[1718226156520,0.855,3561.3,3560.8,1.46354871]
[1718226156826,2.3129,3561.6,3560.7,0.14631501]
[1718226157036,2.3129,3561.6,3560.8,2.10485213]
[1718226157260,2.3129,3561.6,3560.9,1.46343091]
[1718226157557,2.3129,3561.6,3561.0,2.51170765]
[1718226157742,2.3129,3561.6,3561.1,1.46343091]
[1718226158072,2.3129,3561.6,3561.0,1.04827674]
[1718226158275,2.3129,3561.6,3561.1,1.46334958]
[1718226158477,7.5802029,3562.6,3561.2,0.05616021]
[1718226158662,7.5802029,3562.6,3561.3,1.51949316]
[1718226158663,0.855,3562.0,3561.3,1.51949316]
[1718226158977,2.4149,3562.1,3561.4,1.46322655]
[1718226159280,0.005,3562.2,3561.5,0.855]
[1718226159439,0.005,3562.2,3561.6,1.46322655]
[1718226159644,0.86,3562.2,3561.7,1.46322655]
[1718226159845,0.86,3562.2,3561.6,0.53053766]
[1718226160198,0.005,3562.2,3561.6,0.53053766]
[1718226160346,0.005,3562.2,3561.7,1.46316155]
[1718226160536,0.005,3562.2,3561.6,1.11579769]
[1718226160741,0.855,3561.7,3561.6,0.58526003]
[1718226160981,2.4384,3562.1,3561.3,0.58526003]
[1718226161201,1.43344514,3562.0,3561.1,0.58526003]
[1718226161538,2.4408,3561.9,3560.9,0.58526003]
[1718226161742,3.87424514,3561.9,3561.0,1.46338176]
[1718226162138,3.87424514,3561.9,3561.1,1.46338176]
[1718226162498,1.43344514,3561.9,3561.0,0.58526003]
[1718226162708,1.43344514,3561.9,3561.1,1.46333713]
[1718226162912,1.43344514,3561.9,3561.2,1.46333713]
[1718226163301,1.43344514,3561.9,3561.0,0.58526003]
[1718226163302,2.4733,3561.8,3561.0,0.58526003]
[1718226163611,2.4733,3561.8,3560.8,0.87789004]
[1718226163612,2.4733,3561.8,3561.1,1.46334717]
[1718226163828,2.4733,3561.8,3560.9,0.58526003]
[1718226163994,2.4733,3561.8,3561.0,1.46335721]
[1718226164390,2.4733,3561.8,3561.1,1.46335721]
[1718226164808,2.4733,3561.8,3560.9,0.58526003]
[1718226164980,1.43344514,3561.7,3561.0,1.46335815]
[1718226165189,1.43344514,3561.7,3560.8,0.58526003]
[1718226165515,1.43344514,3561.7,3560.9,1.46341617]
[1718226165716,1.43344514,3561.7,3560.7,0.58526003]
[1718226165892,1.43344514,3561.7,3560.8,2.04868041]
[1718226166091,1.86318711,3561.7,3560.9,1.46342038]
[1718226170518,1.86318711,3561.7,3560.9,2.04868041]
[1718226170683,1.86318711,3561.7,3561.0,1.46342038]
[1718226171580,1.86318711,3561.7,3560.9,0.58526003]
[1718226171780,1.86318711,3561.7,3561.0,1.46344226]
[1718226171981,1.86318711,3561.7,3560.9,0.58526003]
[1718226172183,1.86318711,3561.7,3561.0,1.46343033]
[1718226172501,1.86318711,3561.7,3560.9,0.58526003]
[1718226172882,1.86318711,3561.7,3561.0,1.46342217]
[1718226173106,1.86318711,3561.7,3560.9,0.58526003]
[1718226173107,1.86318711,3561.7,3561.1,1.46342217]
[1718226173310,1.86318711,3561.7,3560.9,0.58526003]
[1718226173503,1.86318711,3561.7,3561.0,1.46343171]
[1718226173708,1.86318711,3561.7,3561.1,1.46343171]
[1718226173911,2.4451,3561.5,3560.9,0.58526003]
[1718226174326,3.87854514,3561.5,3561.0,1.46342689]
[1718226174524,1.43344514,3561.4,3560.8,0.58526003]
[1718226174828,1.43344514,3561.4,3560.9,1.4634894]
[1718226175211,1.43344514,3561.4,3560.8,0.58526003]
[1718226175444,1.43344514,3561.4,3560.9,1.46352112]
[1718226175642,1.43344514,3561.4,3560.8,0.58526003]
[1718226175968,1.43344514,3561.4,3560.9,1.46351895]
[1718226176255,1.43344514,3561.4,3560.8,0.58526003]
[1718226176256,1.43344514,3561.4,3561.0,1.46351895]
[1718226176421,1.43344514,3561.4,3560.8,0.58526003]
[1718226176815,1.43344514,3561.4,3560.9,1.46349715]
[1718226177052,1.43344514,3561.4,3561.0,1.46349715]
[1718226177251,1.43344514,3561.4,3560.8,0.58526003]
[1718226177458,1.43344514,3561.4,3560.9,1.46350631]
[1718226177632,1.43344514,3561.4,3561.0,1.46350631]
[1718226178042,1.43344514,3561.4,3560.8,0.58526003]
[1718226178345,1.43344514,3561.4,3560.9,1.46352288]
[1718226178519,1.43344514,3561.4,3561.0,1.46352288]
[1718226178720,1.43344514,3561.4,3560.8,0.58526003]
[1718226178721,1.43344514,3561.4,3560.9,1.46352288]
[1718226178923,1.43344514,3561.4,3560.8,0.58526003]
[1718226179117,1.43344514,3561.4,3560.9,1.46353194]
[1718226179118,2.3901,3561.3,3560.9,1.46353194]
[1718226179950,2.4037,3561.1,3560.8,0.58526003]
[1718226180191,4.4487,3560.9,3560.7,0.58526003]
[1718226180462,2.4037,3560.7,3560.2,0.58526003]
[1718226180615,3.83714514,3560.7,3560.0,0.58526003]
[1718226180822,3.83714514,3560.7,3560.1,1.46394503]
[1718226181242,3.83714514,3560.7,3560.2,1.46394503]
[1718226181444,3.83714514,3560.7,3560.3,1.46387165]
[1718226181664,3.83714514,3560.7,3560.1,0.58526003]
[1718226181826,2.4037,3560.7,3560.2,1.46387121]
[1718226182153,2.4037,3560.7,3560.3,1.46387121]
[1718226182353,2.4037,3560.7,3560.0,0.87789004]
[1718226182354,2.4037,3560.7,3560.2,0.58526003]
[1718226182555,2.4037,3560.7,3560.3,1.4638318]
[1718226182758,2.4037,3560.7,3560.2,0.58526003]
[1718226182922,2.4037,3560.7,3560.3,1.46383027]
[1718226183325,2.4037,3560.7,3560.2,0.58526003]
[1718226183544,2.4037,3560.7,3560.3,1.46383709]
[1718226183822,2.4037,3560.7,3560.2,0.58526003]
[1718226184022,2.4037,3560.7,3560.3,1.46384154]
[1718226184436,2.4037,3560.7,3560.1,0.58526003]
[1718226184660,2.4037,3560.7,3560.2,1.46387195]
[1718226184860,2.4037,3560.7,3560.1,0.58526003]
[1718226185064,2.4037,3560.7,3560.2,1.4638722]
[1718226185360,2.4037,3560.7,3560.0,0.58526003]
[1718226185540,2.4037,3560.7,3560.1,1.46387261]
[1718226185741,2.4037,3560.7,3560.2,1.46387261]
[1718226185949,2.4037,3560.7,3560.0,0.58526003]
[1718226186141,2.4037,3560.7,3560.1,1.46387316]
[1718226186464,2.4037,3560.7,3560.2,1.46387316]
[1718226186663,2.4037,3560.7,3560.1,0.87796235]
[1718226186856,2.4037,3560.7,3560.2,1.46385847]
[1718226187168,2.4037,3560.7,3560.1,0.58526003]
[1718226187331,2.4037,3560.7,3560.2,1.46382566]
[1718226187532,2.4037,3560.7,3560.1,0.58526003]
[1718226187733,2.4037,3560.7,3560.2,1.46381816]
[1718226187959,2.4037,3560.7,3560.3,1.46381816]
[1718226188386,2.4037,3560.7,3560.2,0.29269682]
[1718226188666,2.4037,3560.7,3560.1,0.58526003]
[1718226188891,2.4037,3560.7,3560.2,1.46382079]
[1718226189394,2.4037,3560.7,3560.3,2.04908082]
[1718226189694,2.4037,3560.7,3560.4,1.46382079]
[1718226189994,2.4037,3560.7,3560.2,0.58526003]
[1718226190198,2.4037,3560.7,3560.2,2.31236562]
[1718226190497,0.97117282,3567.9,3560.2,2.31236562]
[1718226190498,2.2668,3562.0,3560.3,0.05617396]
[1718226190698,2.2668,3561.6,3560.3,2.04899861]
[1718226190868,1.43344514,3561.5,3560.4,2.36802418]
[1718226191201,2.2668,3561.4,3560.5,1.46373858]
[1718226191374,2.2668,3561.4,3560.4,0.9042856]
[1718226191375,2.045,3560.9,3560.6,1.46373858]
[1718226191700,2.045,3560.9,3560.3,2.82939202]
[1718226191701,2.4814,3560.7,3560.3,0.58526003]
[1718226191907,2.4814,3560.7,3559.8,1.45878183]
[1718226191908,2.4814,3560.6,3559.8,0.58526003]
[1718226192114,2.4814,3560.6,3559.9,1.46393976]
[1718226192409,2.4814,3560.6,3560.0,1.46393976]
[1718226192712,2.4814,3560.6,3559.8,0.58526003]
[1718226193010,2.4814,3560.6,3559.9,1.4639351]
[1718226193174,2.4814,3560.6,3559.8,0.84862704]
[1718226193373,2.4814,3560.6,3559.9,1.46393486]
[1718226193573,2.4814,3560.6,3560.0,1.46393486]
[1718226193895,2.4814,3560.6,3559.8,0.84862704]
[1718226194079,2.4814,3560.6,3559.9,1.46391923]
[1718226194282,2.4814,3560.6,3559.8,0.84862704]
[1718226194489,2.4814,3560.6,3559.9,1.463934]
[1718226194695,2.4814,3560.6,3559.8,0.84862704]
[1718226194895,2.4814,3560.6,3559.9,1.4639342]
[1718226195095,2.4814,3560.6,3559.8,0.84862704]
[1718226195279,2.4814,3560.6,3559.9,1.46393463]
[1718226195641,2.4814,3560.6,3559.8,0.84862704]
[1718226195818,2.3237,3560.4,3559.9,1.46394448]
[1718226195976,2.3237,3560.4,3559.7,0.58526003]
[1718226196177,2.3237,3560.4,3559.8,1.46399218]
[1718226196577,2.3237,3560.4,3559.7,0.58526003]
[1718226196773,2.3237,3560.4,3559.8,1.46400266]
[1718226197008,2.3237,3560.4,3559.6,0.58526003]
[1718226197312,2.3237,3560.4,3559.7,1.46401156]
[1718226197735,2.3237,3560.4,3559.8,1.46401156]
[1718226197877,2.3237,3560.4,3559.6,1.00102704]
[1718226198219,2.3237,3560.4,3559.7,1.46400342]
[1718226198373,2.3237,3560.4,3559.8,1.46400342]
[1718226198576,2.3237,3560.4,3559.6,1.00102704]
[1718226198801,2.3237,3560.4,3559.7,1.46399369]
[1718226198988,2.3237,3560.4,3559.8,1.46399369]
[1718226199315,2.3237,3560.4,3559.6,1.00102704]
[1718226199523,2.3237,3560.4,3559.7,1.46400737]
[1718226199682,2.3237,3560.4,3559.6,1.00102704]
[1718226200025,2.3237,3560.4,3559.7,1.65189854]
[1718226200205,2.3237,3560.4,3559.7,0.18789171]
[1718226200397,2.3237,3560.4,3559.7,0.2440704]
[1718226201622,2.3237,3560.4,3559.9,0.58526003]
[1718226201917,2.3237,3560.4,3560.0,1.4639717]
[1718226202218,2.3237,3560.4,3560.0,0.31711922]
[1718226202620,2.3237,3560.4,3559.8,0.64143621]
[1718226202795,2.3237,3560.4,3559.9,1.46385526]
[1718226203001,2.3237,3560.4,3560.0,1.46385526]
[1718226203390,2.3237,3560.4,3559.8,0.58526003]
[1718226203620,2.3237,3560.4,3559.9,1.46385536]
[1718226203790,2.3237,3560.4,3560.0,1.69317369]
[1718226203991,2.3237,3560.4,3560.1,1.46385536]
[1718226204210,2.3237,3560.4,3560.0,0.22931833]
[1718226205488,2.3237,3560.4,3560.1,1.46381347]
[1718226205688,2.3237,3560.4,3560.0,0.22931833]
[1718226205907,2.3237,3560.4,3560.1,1.4638156]
[1718226206114,2.3237,3560.4,3560.0,0.22931833]
[1718226206314,2.3237,3560.4,3560.1,1.46381478]
[1718226206513,2.3237,3560.4,3560.1,0.32124594]
[1718226207006,2.3237,3560.4,3559.9,0.58526003]
[1718226207432,2.3237,3560.4,3560.0,2.04906969]
[1718226207641,2.3237,3560.4,3560.1,1.46380966]
[1718226207834,2.3237,3560.4,3560.0,0.58526003]
[1718226208020,2.483,3560.7,3560.1,1.46380223]
[1718226208202,2.483,3560.7,3560.0,0.58526003]
[1718226208203,3.335,3560.7,3560.2,1.46380223]
[1718226208604,3.335,3560.7,3560.1,0.58526003]
[1718226208812,3.335,3560.7,3560.2,1.46373095]
[1718226209017,3.335,3560.7,3560.1,0.58526003]
[1718226209217,3.335,3560.7,3560.2,1.46373454]
[1718226209420,3.335,3560.7,3560.2,1.756423]